[Event "*** Titled Tuesday 3|2 Blitz"]
[Site "Chess.com"]
[Date "2015.10.06"]
[Round "1"]
[White "Moltini"]
[Black "kpio91"]
[Result "0-1"]
[WhiteElo "2143"]
[BlackElo "2503"]
[TimeControl "180+2"]
[EndTime "11:01:42 PDT"]
[Termination "kpio91 won by resignation"]

1. d4 {[%clk 0:02:57]} 1... g6 {[%clk 0:03:00.5]} 2. c4 {[%clk 0:02:58.2]} 2...
Bg7 {[%clk 0:03:02.2]} 3. Nf3 {[%clk 0:02:59.4]} 3... d6 {[%clk 0:03:03.8]} 4.
Nc3 {[%clk 0:03:00.5]} 4... e5 {[%clk 0:03:05.3]} 5. e3 {[%clk 0:03:00.5]} 5...
Nc6 {[%clk 0:03:05]} 6. Be2 {[%clk 0:03:00.4]} 6... Nge7 {[%clk 0:03:04.2]} 7.
d5 {[%clk 0:03:00.4]} 7... Nb8 {[%clk 0:03:04.8]} 8. O-O {[%clk 0:03:01.5]} 8...
O-O {[%clk 0:03:05.6]} 9. e4 {[%clk 0:03:01.6]} 9... h6 {[%clk 0:03:03.3]} 10.
b4 {[%clk 0:03:02.3]} 10... Nd7 {[%clk 0:03:01.3]} 11. a4 {[%clk 0:03:03.2]}
11... a5 {[%clk 0:03:00.2]} 12. Ba3 {[%clk 0:03:03.9]} 12... f5 {[%clk
0:02:57.4]} 13. Nd2 {[%clk 0:03:02.3]} 13... axb4 {[%clk 0:02:55.6]} 14. Bxb4
{[%clk 0:03:02.9]} 14... Nf6 {[%clk 0:02:56.4]} 15. c5 {[%clk 0:03:01.3]} 15...
fxe4 {[%clk 0:02:53.5]} 16. cxd6 {[%clk 0:03:00.1]} 16... cxd6 {[%clk
0:02:53.1]} 17. Ndxe4 {[%clk 0:03:00]} 17... Nf5 {[%clk 0:02:54.2]} 18. Nb5
{[%clk 0:02:58.5]} 18... Nxe4 {[%clk 0:02:54]} 0-1

[Event "*** Titled Tuesday 3|2 Blitz"]
[Site "Chess.com"]
[Date "2015.10.06"]
[Round "1"]
[White "kikydu96"]
[Black "Tal-Baronfew"]
[Result "0-1"]
[WhiteElo "2272"]
[BlackElo "2664"]
[TimeControl "180+2"]
[EndTime "11:02:44 PDT"]
[Termination "Tal-Baronfew won by resignation"]

1. e4 {[%clk 0:03:01.9]} 1... e5 {[%clk 0:02:50.8]} 2. Nf3 {[%clk 0:03:02.3]}
2... Nc6 {[%clk 0:02:51]} 3. Bc4 {[%clk 0:03:03]} 3... Bc5 {[%clk 0:02:51.3]} 4.
c3 {[%clk 0:03:03.9]} 4... Nf6 {[%clk 0:02:51.3]} 5. d3 {[%clk 0:03:05]} 5... a6
{[%clk 0:02:50.5]} 6. Bb3 {[%clk 0:03:06.2]} 6... Ba7 {[%clk 0:02:49.9]} 7. h3
{[%clk 0:03:07.6]} 7... h6 {[%clk 0:02:48.4]} 8. Nbd2 {[%clk 0:03:08.3]} 8...
O-O {[%clk 0:02:48.1]} 9. Nf1 {[%clk 0:03:09.2]} 9... d5 {[%clk 0:02:47.6]} 10.
Qe2 {[%clk 0:03:07.1]} 10... Be6 {[%clk 0:02:47]} 11. Ng3 {[%clk 0:03:06.5]}
11... Qd7 {[%clk 0:02:24.9]} 12. O-O {[%clk 0:02:55.2]} 12... dxe4 {[%clk
0:02:25.9]} 13. Bxe6 {[%clk 0:02:40.3]} 13... exf3 {[%clk 0:02:18]} 0-1

[Event "*** Titled Tuesday 3|2 Blitz"]
[Site "Chess.com"]
[Date "2015.10.06"]
[Round "1"]
[White "AndreyOstrovskiy"]
[Black "FMCouch"]
[Result "0-1"]
[WhiteElo "2376"]
[BlackElo "2038"]
[TimeControl "180+2"]
[EndTime "11:04:13 PDT"]
[Termination "FMCouch won by resignation"]

1. e4 {[%clk 0:02:59.8]} 1... c5 {[%clk 0:02:58.8]} 2. Nf3 {[%clk 0:03:00.1]}
2... d6 {[%clk 0:02:58]} 3. d4 {[%clk 0:03:00.7]} 3... cxd4 {[%clk 0:02:59.9]}
4. Nxd4 {[%clk 0:03:01.4]} 4... Nf6 {[%clk 0:03:01.6]} 5. Nc3 {[%clk 0:03:01.8]}
5... a6 {[%clk 0:03:03.3]} 6. Bc4 {[%clk 0:03:02.9]} 6... e6 {[%clk 0:03:04.3]}
7. a4 {[%clk 0:03:03.4]} 7... Nbd7 {[%clk 0:03:04.1]} 8. O-O {[%clk 0:03:03.5]}
8... Nc5 {[%clk 0:03:04.1]} 9. Re1 {[%clk 0:03:04.3]} 9... Be7 {[%clk
0:03:03.8]} 10. b4 {[%clk 0:03:04.6]} 10... Ncd7 {[%clk 0:03:01]} 11. Bxe6
{[%clk 0:03:05.6]} 11... fxe6 {[%clk 0:03:02.9]} 12. Nxe6 {[%clk 0:03:06.6]}
12... Qb6 {[%clk 0:03:03.2]} 13. Nxg7+ {[%clk 0:03:07.3]} 13... Kf7 {[%clk
0:03:04.2]} 14. Nf5 {[%clk 0:03:07.4]} 14... Ne5 {[%clk 0:03:03.3]} 15. Nxe7
{[%clk 0:02:54.6]} 15... Kxe7 {[%clk 0:03:05.2]} 16. Bg5 {[%clk 0:02:54.5]}
16... Be6 {[%clk 0:03:04]} 17. Qd2 {[%clk 0:02:40.9]} 17... Raf8 {[%clk
0:02:48.4]} 18. Kh1 {[%clk 0:02:38.3]} 18... h6 {[%clk 0:02:40.4]} 19. Bxf6+
{[%clk 0:02:34.8]} 19... Rxf6 {[%clk 0:02:42.3]} 20. f4 {[%clk 0:02:36.1]} 20...
Ng4 {[%clk 0:02:41.1]} 21. Re2 {[%clk 0:02:30.1]} 21... Rhf8 {[%clk 0:02:30.2]}
22. f5 {[%clk 0:02:26.9]} 22... Bc4 {[%clk 0:02:28.4]} 23. Nd5+ {[%clk
0:02:27.2]} 23... Bxd5 {[%clk 0:02:27.8]} 24. exd5+ {[%clk 0:02:28.1]} 24... Ne5
{[%clk 0:02:29]} 25. g4 {[%clk 0:02:20.1]} 25... Rg8 {[%clk 0:02:27.1]} 26. c4
{[%clk 0:02:15.8]} 26... Rxg4 {[%clk 0:02:25.5]} 27. c5 {[%clk 0:02:17.2]} 27...
Qxb4 {[%clk 0:02:26.3]} 28. cxd6+ {[%clk 0:02:16.9]} 28... Kxd6 {[%clk
0:02:28.2]} 29. Qe3 {[%clk 0:02:09.3]} 29... Qd4 {[%clk 0:02:23.8]} 30. Qa3+
{[%clk 0:02:06.2]} 30... Kd7 {[%clk 0:02:23.4]} 31. Rae1 {[%clk 0:01:55.4]}
31... Qxd5+ {[%clk 0:02:21.7]} 0-1

[Event "*** Titled Tuesday 3|2 Blitz"]
[Site "Chess.com"]
[Date "2015.10.06"]
[Round "1"]
[White "facu57"]
[Black "alturas_pacificas"]
[Result "1-0"]
[WhiteElo "2485"]
[BlackElo "2121"]
[TimeControl "180+2"]
[EndTime "11:04:47 PDT"]
[Termination "facu57 won by checkmate"]

1. e4 {[%clk 0:02:46.6]} 1... c6 {[%clk 0:00:48.7]} 2. d4 {[%clk 0:02:43.5]}
2... d5 {[%clk 0:00:49.7]} 3. Nc3 {[%clk 0:02:45.4]} 3... dxe4 {[%clk
0:00:50.7]} 4. Nxe4 {[%clk 0:02:47]} 4... Bf5 {[%clk 0:00:52.4]} 5. Ng3 {[%clk
0:02:46.9]} 5... Bg6 {[%clk 0:00:54]} 6. f4 {[%clk 0:02:46.1]} 6... h6 {[%clk
0:00:55.3]} 7. f5 {[%clk 0:02:44]} 7... Bh7 {[%clk 0:00:56.5]} 8. Bc4 {[%clk
0:02:37.2]} 8... Nf6 {[%clk 0:00:58]} 9. Nf3 {[%clk 0:02:35.7]} 9... Nbd7 {[%clk
0:00:59.1]} 10. c3 {[%clk 0:02:34.6]} 10... Nb6 {[%clk 0:01:00.7]} 11. Bb3
{[%clk 0:02:32.3]} 11... Nbd5 {[%clk 0:01:02.2]} 12. O-O {[%clk 0:02:32.5]}
12... e6 {[%clk 0:01:03.1]} 13. fxe6 {[%clk 0:02:31.6]} 13... fxe6 {[%clk
0:01:05]} 14. Ne5 {[%clk 0:02:33.5]} 14... Qc8 {[%clk 0:01:05.4]} 15. Nh5 {[%clk
0:02:29.5]} 15... Be7 {[%clk 0:01:03.3]} 16. Nxg7+ {[%clk 0:02:27.1]} 16... Kd8
{[%clk 0:01:03.6]} 17. Nf7+ {[%clk 0:02:25.1]} 17... Kc7 {[%clk 0:01:04.1]} 18.
Bxd5 {[%clk 0:02:22.9]} 18... cxd5 {[%clk 0:01:04.8]} 19. Bf4+ {[%clk
0:02:21.3]} 19... Kb6 {[%clk 0:01:05.6]} 20. Qb3+ {[%clk 0:02:20.2]} 20... Ka6
{[%clk 0:01:07]} 21. Nxh8 {[%clk 0:02:16.7]} 21... Qxh8 {[%clk 0:01:07.6]} 22.
Nxe6 {[%clk 0:02:17.6]} 22... b6 {[%clk 0:01:09]} 23. Be5 {[%clk 0:02:14]} 23...
Be4 {[%clk 0:01:07.7]} 24. Bxf6 {[%clk 0:02:08.7]} 24... Bxf6 {[%clk 0:01:08.9]}
25. Qa4+ {[%clk 0:02:10.4]} 25... Kb7 {[%clk 0:01:09.8]} 26. Qd7+ {[%clk
0:02:12.3]} 26... Ka6 {[%clk 0:01:11]} 27. Nc7+ {[%clk 0:02:13.6]} 27... Ka5
{[%clk 0:01:12.2]} 28. Qb5# {[%clk 0:02:14.3]} 1-0

[Event "*** Titled Tuesday 3|2 Blitz"]
[Site "Chess.com"]
[Date "2015.10.06"]
[Round "1"]
[White "promen1999"]
[Black "dretch"]
[Result "1-0"]
[WhiteElo "2302"]
[BlackElo "2552"]
[TimeControl "180+2"]
[EndTime "11:05:16 PDT"]
[Termination "promen1999 won by resignation"]

1. d4 {[%clk 0:02:59.7]} 1... d5 {[%clk 0:02:58.1]} 2. c4 {[%clk 0:03:00.2]}
2... c6 {[%clk 0:02:59.4]} 3. Nf3 {[%clk 0:03:01.3]} 3... Nf6 {[%clk 0:03:00.9]}
4. Nc3 {[%clk 0:03:02.5]} 4... dxc4 {[%clk 0:03:02.4]} 5. a4 {[%clk 0:03:03]}
5... e6 {[%clk 0:03:03.7]} 6. e4 {[%clk 0:03:02.7]} 6... Bb4 {[%clk 0:03:04.7]}
7. e5 {[%clk 0:02:58.4]} 7... Nd5 {[%clk 0:03:04.5]} 8. Bd2 {[%clk 0:02:59.5]}
8... b5 {[%clk 0:03:01.7]} 9. axb5 {[%clk 0:03:00.3]} 9... Bxc3 {[%clk
0:03:02.7]} 10. bxc3 {[%clk 0:03:01.2]} 10... cxb5 {[%clk 0:03:04.6]} 11. Ng5
{[%clk 0:03:01.3]} 11... O-O {[%clk 0:03:00]} 12. Qh5 {[%clk 0:02:56.8]} 12...
h6 {[%clk 0:03:00.3]} 13. h4 {[%clk 0:02:57.3]} 13... f6 {[%clk 0:02:57]} 14.
Ne4 {[%clk 0:02:52.6]} 14... fxe5 {[%clk 0:02:58.2]} 15. Bxh6 {[%clk 0:02:46.1]}
15... Nc6 {[%clk 0:02:35.5]} 16. Bxg7 {[%clk 0:02:35.9]} 16... Nf4 {[%clk
0:02:25.3]} 17. Qh8+ {[%clk 0:02:35.4]} 17... Kf7 {[%clk 0:02:26.3]} 18. Qxf8+
{[%clk 0:02:35.8]} 18... Qxf8 {[%clk 0:02:27.2]} 19. Bxf8 {[%clk 0:02:37.2]}
19... Kxf8 {[%clk 0:02:29.1]} 20. g3 {[%clk 0:02:32]} 20... Nd5 {[%clk
0:02:27.4]} 21. Nd6 {[%clk 0:02:25.1]} 21... Nxc3 {[%clk 0:02:27.4]} 22. Bg2
{[%clk 0:02:19]} 22... Nd5 {[%clk 0:02:20.7]} 23. dxe5 {[%clk 0:02:14.1]} 23...
Rb8 {[%clk 0:02:03.4]} 24. h5 {[%clk 0:02:12.5]} 24... Nxe5 {[%clk 0:01:51.4]}
25. h6 {[%clk 0:02:12]} 25... Ng6 {[%clk 0:01:49.8]} 26. h7 {[%clk 0:02:12]}
26... Nh8 {[%clk 0:01:47.5]} 27. Rxa7 {[%clk 0:02:12.6]} 27... c3 {[%clk
0:01:34.1]} 28. Bxd5 {[%clk 0:01:49.1]} 28... exd5 {[%clk 0:01:33.7]} 29. Rh4
{[%clk 0:01:49.7]} 1-0

[Event "*** Titled Tuesday 3|2 Blitz"]
[Site "Chess.com"]
[Date "2015.10.06"]
[Round "1"]
[White "alexsuper1987"]
[Black "SenseiJulio"]
[Result "1/2-1/2"]
[WhiteElo "2209"]
[BlackElo "2520"]
[TimeControl "180+2"]
[EndTime "11:05:22 PDT"]
[Termination "Game drawn by repetition"]

1. e4 {[%clk 0:03:01.7]} 1... e6 {[%clk 0:03:01]} 2. d4 {[%clk 0:03:01.5]} 2...
d5 {[%clk 0:03:02.6]} 3. Nc3 {[%clk 0:03:01.2]} 3... Nf6 {[%clk 0:03:03.2]} 4.
Bg5 {[%clk 0:03:00.6]} 4... dxe4 {[%clk 0:03:03.4]} 5. Nxe4 {[%clk 0:03:00.1]}
5... Be7 {[%clk 0:03:05]} 6. Bxf6 {[%clk 0:03:01.4]} 6... gxf6 {[%clk
0:03:05.9]} 7. Nf3 {[%clk 0:03:03.3]} 7... f5 {[%clk 0:03:07.5]} 8. Ned2 {[%clk
0:02:53.4]} 8... a6 {[%clk 0:03:03.6]} 9. g3 {[%clk 0:02:50.8]} 9... b5 {[%clk
0:03:05.2]} 10. Bg2 {[%clk 0:02:51.9]} 10... Bb7 {[%clk 0:03:06.9]} 11. a4
{[%clk 0:02:48.4]} 11... Nd7 {[%clk 0:03:03.2]} 12. Qe2 {[%clk 0:02:44.9]} 12...
c5 {[%clk 0:02:59]} 13. O-O {[%clk 0:02:42]} 13... c4 {[%clk 0:02:48.5]} 14.
axb5 {[%clk 0:02:34.1]} 14... axb5 {[%clk 0:02:48]} 15. Ne5 {[%clk 0:02:35.1]}
15... Bxg2 {[%clk 0:02:39.5]} 16. Kxg2 {[%clk 0:02:37]} 16... Nb6 {[%clk
0:02:25.5]} 17. Qh5 {[%clk 0:02:19.2]} 17... O-O {[%clk 0:02:23.8]} 18. Ndf3
{[%clk 0:02:08]} 18... Qd5 {[%clk 0:01:39.6]} 19. Kg1 {[%clk 0:01:39]} 19... f6
{[%clk 0:01:23.1]} 20. Ng6 {[%clk 0:01:39.6]} 20... hxg6 {[%clk 0:01:07.8]} 21.
Qxg6+ {[%clk 0:01:41.5]} 21... Kh8 {[%clk 0:01:09.3]} 22. Qh6+ {[%clk
0:01:42.1]} 22... Kg8 {[%clk 0:01:10.9]} 23. Qg6+ {[%clk 0:01:43.1]} 23... Kh8
{[%clk 0:01:12.2]} 24. Qh6+ {[%clk 0:01:26.9]} 24... Kg8 {[%clk 0:01:13.3]} 25.
Qg6+ {[%clk 0:01:27.6]} 25... Kh8 {[%clk 0:01:14]} 26. Qh6+ {[%clk 0:01:27.6]}
26... Kg8 {[%clk 0:01:15.3]} 1/2-1/2

[Event "*** Titled Tuesday 3|2 Blitz"]
[Site "Chess.com"]
[Date "2015.10.06"]
[Round "1"]
[White "Ginger_GM"]
[Black "AungTZ"]
[Result "1-0"]
[WhiteElo "2438"]
[BlackElo "2072"]
[TimeControl "180+2"]
[EndTime "11:05:28 PDT"]
[Termination "Ginger_GM won by resignation"]

1. d4 {[%clk 0:02:59.6]} 1... d5 {[%clk 0:03:00.6]} 2. c4 {[%clk 0:02:56.7]}
2... e6 {[%clk 0:03:01.6]} 3. Nc3 {[%clk 0:02:57.8]} 3... Nf6 {[%clk 0:03:02.4]}
4. Nf3 {[%clk 0:02:58.6]} 4... Be7 {[%clk 0:03:02.7]} 5. Bf4 {[%clk 0:02:59.3]}
5... O-O {[%clk 0:03:02.3]} 6. e3 {[%clk 0:03:00.3]} 6... c5 {[%clk 0:03:03.3]}
7. dxc5 {[%clk 0:03:01.1]} 7... Bxc5 {[%clk 0:03:03.8]} 8. Qc2 {[%clk
0:03:02.4]} 8... Nc6 {[%clk 0:03:03.4]} 9. a3 {[%clk 0:03:03.1]} 9... a6 {[%clk
0:02:58.6]} 10. b4 {[%clk 0:02:53.2]} 10... Ba7 {[%clk 0:02:59.1]} 11. Rd1
{[%clk 0:02:50.7]} 11... Qe7 {[%clk 0:02:23.7]} 12. cxd5 {[%clk 0:02:41.7]}
12... exd5 {[%clk 0:02:24.4]} 13. Nxd5 {[%clk 0:02:41.2]} 13... Nxd5 {[%clk
0:02:24.8]} 14. Rxd5 {[%clk 0:02:43.1]} 14... Be6 {[%clk 0:02:12.8]} 15. Rd2
{[%clk 0:02:32]} 15... Rfc8 {[%clk 0:02:10.3]} 16. Qb2 {[%clk 0:02:32.1]} 16...
f6 {[%clk 0:01:58.8]} 17. Be2 {[%clk 0:02:32.4]} 17... g5 {[%clk 0:01:59.8]} 18.
Bd6 {[%clk 0:02:31.9]} 18... Qf7 {[%clk 0:01:54.5]} 19. O-O {[%clk 0:02:32.3]}
19... Ne7 {[%clk 0:01:52.2]} 20. Nd4 {[%clk 0:02:28.2]} 20... Bxd4 {[%clk
0:01:51.5]} 21. Rxd4 {[%clk 0:02:14.7]} 21... Nf5 {[%clk 0:01:52.6]} 22. Rd2
{[%clk 0:02:15.4]} 22... Bd5 {[%clk 0:01:47.8]} 23. Bc5 {[%clk 0:02:10.7]} 23...
Nh4 {[%clk 0:01:44.2]} 24. f3 {[%clk 0:02:10.3]} 24... Bc6 {[%clk 0:01:38.1]}
25. Rd6 {[%clk 0:02:07]} 25... Rf8 {[%clk 0:01:29.3]} 26. Bd4 {[%clk 0:01:55.6]}
26... Qe7 {[%clk 0:01:29.4]} 27. Bc5 {[%clk 0:01:50.2]} 27... Qg7 {[%clk
0:01:20.8]} 28. Bc4+ {[%clk 0:01:48.8]} 28... Kh8 {[%clk 0:01:20.9]} 29. Bd4
{[%clk 0:01:47.6]} 29... Qe7 {[%clk 0:01:19.4]} 30. Rxf6 {[%clk 0:01:46.6]} 1-0

[Event "*** Titled Tuesday 3|2 Blitz"]
[Site "Chess.com"]
[Date "2015.10.06"]
[Round "1"]
[White "Aygehovit1992"]
[Black "Rickstereo"]
[Result "1-0"]
[WhiteElo "2466"]
[BlackElo "2092"]
[TimeControl "180+2"]
[EndTime "11:05:29 PDT"]
[Termination "Aygehovit1992 won by resignation"]

1. e4 {[%clk 0:02:59.8]} 1... c5 {[%clk 0:02:58.4]} 2. Nf3 {[%clk 0:03:00.5]}
2... Nc6 {[%clk 0:02:54.1]} 3. Bb5 {[%clk 0:03:01.3]} 3... g6 {[%clk 0:02:54.5]}
4. Bxc6 {[%clk 0:03:02.1]} 4... dxc6 {[%clk 0:02:55.2]} 5. O-O {[%clk
0:03:02.9]} 5... Bg7 {[%clk 0:02:56.5]} 6. h3 {[%clk 0:03:03.7]} 6... Nf6 {[%clk
0:02:57.6]} 7. d3 {[%clk 0:03:04.9]} 7... O-O {[%clk 0:02:58.7]} 8. Nc3 {[%clk
0:03:05.6]} 8... Nd7 {[%clk 0:02:54.2]} 9. Be3 {[%clk 0:03:05.5]} 9... e5 {[%clk
0:02:55.1]} 10. Nd2 {[%clk 0:03:01.9]} 10... Qe7 {[%clk 0:02:12.3]} 11. Re1
{[%clk 0:02:47.8]} 11... Re8 {[%clk 0:02:12.4]} 12. a4 {[%clk 0:02:48.6]} 12...
Nf8 {[%clk 0:02:11.6]} 13. a5 {[%clk 0:02:49.5]} 13... Ne6 {[%clk 0:02:12.2]}
14. Na4 {[%clk 0:02:50.7]} 14... Nd4 {[%clk 0:01:58.5]} 15. c3 {[%clk
0:02:49.8]} 15... Ne6 {[%clk 0:01:59.2]} 16. Nb3 {[%clk 0:02:51]} 16... Rd8
{[%clk 0:01:41.7]} 17. Nbxc5 {[%clk 0:02:50.9]} 17... Nxc5 {[%clk 0:01:42.2]}
18. Bxc5 {[%clk 0:02:50.8]} 18... Qh4 {[%clk 0:01:40.4]} 19. Qf3 {[%clk
0:02:48.2]} 19... Be6 {[%clk 0:01:33.3]} 20. b4 {[%clk 0:02:39.4]} 20... Rd7
{[%clk 0:01:32.6]} 21. Nb2 {[%clk 0:02:40.3]} 21... a6 {[%clk 0:01:31.8]} 22.
Qg3 {[%clk 0:02:40.1]} 22... Qd8 {[%clk 0:01:27.2]} 23. Rad1 {[%clk 0:02:39]}
23... h5 {[%clk 0:01:24.3]} 24. Bb6 {[%clk 0:02:39.7]} 24... Qe7 {[%clk
0:01:24.8]} 25. Nc4 {[%clk 0:02:40]} 25... Bxc4 {[%clk 0:01:21.7]} 26. dxc4
{[%clk 0:02:40.5]} 26... Rxd1 {[%clk 0:01:21.6]} 27. Rxd1 {[%clk 0:02:41.7]}
27... Qe6 {[%clk 0:01:23.3]} 28. Qd3 {[%clk 0:02:41.9]} 28... Qf6 {[%clk
0:01:19.9]} 29. Be3 {[%clk 0:02:37.1]} 29... g5 {[%clk 0:01:17.5]} 30. Qd6
{[%clk 0:02:36.1]} 30... g4 {[%clk 0:01:15.1]} 31. Qxf6 {[%clk 0:02:36.5]} 31...
Bxf6 {[%clk 0:01:15.4]} 32. hxg4 {[%clk 0:02:38.2]} 32... hxg4 {[%clk
0:01:16.3]} 33. Rd7 {[%clk 0:02:37.8]} 33... Rd8 {[%clk 0:01:11]} 34. Rxb7
{[%clk 0:02:38.5]} 34... Rd3 {[%clk 0:01:11.1]} 35. b5 {[%clk 0:02:31.1]} 35...
axb5 {[%clk 0:01:11.2]} 36. a6 {[%clk 0:02:31.7]} 36... Rd1+ {[%clk 0:01:10.2]}
37. Kh2 {[%clk 0:02:32.4]} 37... Ra1 {[%clk 0:01:11.8]} 38. a7 {[%clk
0:02:33.6]} 38... Kg7 {[%clk 0:01:12]} 39. Rb8 {[%clk 0:02:34.5]} 1-0

[Event "*** Titled Tuesday 3|2 Blitz"]
[Site "Chess.com"]
[Date "2015.10.06"]
[Round "1"]
[White "Rating-Schmating"]
[Black "Iball95"]
[Result "0-1"]
[WhiteElo "1992"]
[BlackElo "2347"]
[TimeControl "180+2"]
[EndTime "11:05:53 PDT"]
[Termination "Iball95 won by resignation"]

1. e4 {[%clk 0:03:01.7]} 1... c5 {[%clk 0:02:59]} 2. Nf3 {[%clk 0:03:01.8]} 2...
Nc6 {[%clk 0:02:58.8]} 3. d4 {[%clk 0:03:02.9]} 3... cxd4 {[%clk 0:02:58.8]} 4.
Nxd4 {[%clk 0:03:03.8]} 4... g6 {[%clk 0:03:00.1]} 5. Nc3 {[%clk 0:03:04.6]}
5... Bg7 {[%clk 0:03:00.7]} 6. Be3 {[%clk 0:03:05.6]} 6... Nf6 {[%clk
0:03:00.6]} 7. f3 {[%clk 0:03:06.3]} 7... O-O {[%clk 0:03:00.9]} 8. Qd2 {[%clk
0:03:07.1]} 8... d5 {[%clk 0:03:02.2]} 9. Nxc6 {[%clk 0:03:07.2]} 9... bxc6
{[%clk 0:03:02.4]} 10. exd5 {[%clk 0:03:07.9]} 10... Nxd5 {[%clk 0:03:01.2]} 11.
Nxd5 {[%clk 0:03:08.5]} 11... cxd5 {[%clk 0:03:01.7]} 12. c3 {[%clk 0:03:09.5]}
12... e5 {[%clk 0:03:02]} 13. Bc5 {[%clk 0:03:09.4]} 13... Re8 {[%clk
0:03:01.2]} 14. Bb5 {[%clk 0:03:06.4]} 14... Bd7 {[%clk 0:03:02.5]} 15. Bxd7
{[%clk 0:03:07.5]} 15... Qxd7 {[%clk 0:03:04.4]} 16. O-O {[%clk 0:03:08.6]}
16... Qc6 {[%clk 0:02:56.2]} 17. Ba3 {[%clk 0:03:09.1]} 17... Rad8 {[%clk
0:02:53.9]} 18. Rad1 {[%clk 0:03:06.9]} 18... h5 {[%clk 0:02:55.1]} 19. Kh1
{[%clk 0:03:05.7]} 19... Kh7 {[%clk 0:02:52.3]} 20. Rfe1 {[%clk 0:03:04.4]}
20... d4 {[%clk 0:02:45.7]} 21. cxd4 {[%clk 0:03:04.2]} 21... exd4 {[%clk
0:02:45]} 22. Rxe8 {[%clk 0:03:04.2]} 22... Rxe8 {[%clk 0:02:42.7]} 23. h3
{[%clk 0:03:02.5]} 23... a6 {[%clk 0:02:34.3]} 24. b3 {[%clk 0:03:02.2]} 24...
Qb5 {[%clk 0:02:14.4]} 25. Qd3 {[%clk 0:02:52.4]} 25... Re1+ {[%clk 0:02:12.8]}
26. Kh2 {[%clk 0:02:50.4]} 26... Qe5+ {[%clk 0:01:55.8]} 27. g3 {[%clk
0:02:36.5]} 27... Re2+ {[%clk 0:01:50]} 28. Kh1 {[%clk 0:02:37.8]} 28... Rxa2
{[%clk 0:01:40.3]} 29. Bb4 {[%clk 0:02:28.9]} 29... Qxg3 {[%clk 0:01:29.9]} 30.
Rd2 {[%clk 0:02:30]} 30... Qxh3+ {[%clk 0:01:30]} 31. Kg1 {[%clk 0:02:31]} 31...
Qg3+ {[%clk 0:01:31.3]} 32. Kf1 {[%clk 0:02:29.1]} 32... Ra1+ {[%clk 0:01:28.6]}
33. Rd1 {[%clk 0:02:29.6]} 33... Rxd1+ {[%clk 0:01:29.2]} 34. Qxd1 {[%clk
0:02:30.5]} 34... h4 {[%clk 0:01:28]} 35. Be1 {[%clk 0:02:29]} 35... Qh3+ {[%clk
0:01:27.4]} 36. Kg1 {[%clk 0:02:29.6]} 36... Be5 {[%clk 0:01:27]} 37. Qe2 {[%clk
0:02:29.1]} 37... Bg3 {[%clk 0:01:22.4]} 38. Bd2 {[%clk 0:02:26.7]} 38... d3
{[%clk 0:01:19.8]} 39. Qg2 {[%clk 0:02:23.5]} 39... Qxg2+ {[%clk 0:01:20.1]} 40.
Kxg2 {[%clk 0:02:24.8]} 40... Kg7 {[%clk 0:01:18]} 41. Bc3+ {[%clk 0:02:24.9]}
41... Kf8 {[%clk 0:01:17.9]} 42. Kh3 {[%clk 0:02:25.8]} 42... Ke7 {[%clk
0:01:16.1]} 43. Kg4 {[%clk 0:02:26.7]} 43... Ke6 {[%clk 0:01:16.4]} 44. f4
{[%clk 0:02:26.8]} 44... Kd5 {[%clk 0:01:15.9]} 45. f5 {[%clk 0:02:27.7]} 45...
gxf5+ {[%clk 0:01:16.4]} 46. Kxf5 {[%clk 0:02:29.1]} 46... h3 {[%clk 0:01:17.4]}
47. Be5 {[%clk 0:02:30.6]} 47... Bxe5 {[%clk 0:01:17.1]} 0-1

[Event "*** Titled Tuesday 3|2 Blitz"]
[Site "Chess.com"]
[Date "2015.10.06"]
[Round "1"]
[White "AleksandrNevski"]
[Black "Haridaskesavan"]
[Result "1-0"]
[WhiteElo "2422"]
[BlackElo "2052"]
[TimeControl "180+2"]
[EndTime "11:06:26 PDT"]
[Termination "AleksandrNevski won by resignation"]

1. c4 {[%clk 0:03:01.9]} 1... e5 {[%clk 0:02:49.6]} 2. g3 {[%clk 0:03:02.4]}
2... Nc6 {[%clk 0:02:48.8]} 3. Bg2 {[%clk 0:03:03.8]} 3... Nf6 {[%clk
0:02:48.4]} 4. Nc3 {[%clk 0:03:04.9]} 4... Bb4 {[%clk 0:02:47.5]} 5. Nd5 {[%clk
0:03:05.3]} 5... Bc5 {[%clk 0:02:47.2]} 6. e3 {[%clk 0:03:06.9]} 6... d6 {[%clk
0:02:46.5]} 7. Ne2 {[%clk 0:03:08.2]} 7... O-O {[%clk 0:02:46.8]} 8. O-O {[%clk
0:03:09.7]} 8... Nxd5 {[%clk 0:02:45.1]} 9. cxd5 {[%clk 0:03:09.7]} 9... Ne7
{[%clk 0:02:45.7]} 10. d4 {[%clk 0:03:10.5]} 10... exd4 {[%clk 0:02:46]} 11.
Nxd4 {[%clk 0:03:10.6]} 11... Bb6 {[%clk 0:02:45.6]} 12. b3 {[%clk 0:03:10.6]}
12... Nf5 {[%clk 0:02:45.1]} 13. Bb2 {[%clk 0:03:06.1]} 13... Nxd4 {[%clk
0:02:46.1]} 14. Bxd4 {[%clk 0:03:06.2]} 14... Bf5 {[%clk 0:02:34.9]} 15. Rc1
{[%clk 0:03:06]} 15... Bxd4 {[%clk 0:02:31.5]} 16. Qxd4 {[%clk 0:03:06.2]} 16...
a6 {[%clk 0:02:31.9]} 17. Rc3 {[%clk 0:03:05.5]} 17... Qd7 {[%clk 0:02:29.7]}
18. Rfc1 {[%clk 0:03:06.9]} 18... Rac8 {[%clk 0:02:30.7]} 19. Qa7 {[%clk
0:02:41.2]} 19... Bh3 {[%clk 0:01:53.9]} 20. Qxb7 {[%clk 0:02:32.5]} 20... Bxg2
{[%clk 0:01:54.1]} 21. Kxg2 {[%clk 0:02:32.8]} 21... h5 {[%clk 0:01:50.4]} 22.
h4 {[%clk 0:02:30.3]} 22... g5 {[%clk 0:01:49.8]} 23. Rc4 {[%clk 0:02:05]} 23...
g4 {[%clk 0:01:48.2]} 24. Qxa6 {[%clk 0:01:43.4]} 24... Qf5 {[%clk 0:01:47]} 25.
Qc6 {[%clk 0:01:35.8]} 25... Ra8 {[%clk 0:01:39.3]} 26. Rf4 {[%clk 0:01:33.3]}
26... Qe5 {[%clk 0:01:32.5]} 27. a4 {[%clk 0:01:29]} 27... Rab8 {[%clk
0:01:29.4]} 28. b4 {[%clk 0:01:27.5]} 28... Qb2 {[%clk 0:01:29]} 29. Rcc4 {[%clk
0:01:25.3]} 29... Rfe8 {[%clk 0:01:21.3]} 30. Qxc7 {[%clk 0:01:15]} 30... Rf8
{[%clk 0:01:20.6]} 31. Qxd6 {[%clk 0:01:14.5]} 31... Rbe8 {[%clk 0:01:19.7]} 32.
Qf6 {[%clk 0:01:08.8]} 32... Rxe3 {[%clk 0:01:13.6]} 33. Qxb2 {[%clk 0:01:08.4]}
1-0